bitfinex-derivatives/quotes_SOLF0:USTF0_20250731
["timestamp","ask_amount","ask_price","bid_price","bid_amount"]
[1753955159386,8.5375,182.24,182.23,3.0]
[1753955159587,8.5375,182.24,182.22,3.0]
[1753955159786,3.05,182.23,182.22,3.0]
[1753955160188,3.05,182.22,182.13,2.98380799]
[1753955160387,3.05,182.2,182.16,5.4897]
[1753955160588,3.05,182.2,182.18,3.0]
[1753955161091,2.98380799,182.21,182.16,5.4897]
[1753955161289,5.4891,182.19,182.17,3.0]
[1753955161490,3.05,182.18,182.16,5.4897]
[1753955161989,3.05,182.18,182.17,3.0]
[1753955162886,8.5393,182.18,182.17,3.0]
[1753955163095,3.05,182.18,182.12,3.0]
[1753955163688,3.05,182.17,182.15,3.0]
[1753955165092,3.05,182.17,182.16,3.0]
[1753955165592,5.4894,182.18,182.16,3.0]
[1753955165794,2.98380799,182.19,182.12,3.0]
[1753955166292,2.98380799,182.19,182.16,5.4897]
[1753955166488,6.03380799,182.19,182.16,5.4897]
[1753955166695,3.05,182.18,182.17,3.0]
[1753955167785,3.05,182.18,182.11,2.98380799]
[1753955167995,2.98380799,182.15,182.1,3.0]
[1753955168197,3.05,182.14,182.1,3.0]
[1753955168592,3.05,182.14,182.12,5.4909]
[1753955168793,3.05,182.14,182.13,3.0]
[1753955171302,3.05,182.14,182.13,8.4908]
[1753955173098,2.98380799,182.15,182.14,5.4905]
[1753955173305,3.05,182.16,182.15,3.0]
[1753955173801,3.05,182.16,182.15,8.4902]
[1753955174001,2.98380799,182.17,182.15,3.0]
[1753955174202,6.03380799,182.17,182.15,3.0]
[1753955174402,3.92895366,182.16,182.15,3.0]
[1753955174606,3.92895366,182.16,182.15,8.4902]
[1753955175609,7.09895366,182.16,182.15,8.4902]
[1753955176204,7.09895366,182.16,182.15,3.0]
[1753955177000,7.09895366,182.16,182.15,8.4902]
[1753955178811,3.92895366,182.16,182.15,8.4902]
[1753955180308,7.10075497,182.16,182.15,8.6102]
[1753955180813,3.17,182.15,182.12,3.12]
[1753955181008,3.17,182.16,182.12,3.12]
[1753955181313,7.10081867,182.15,182.14,8.6105]
[1753955181512,3.17,182.15,182.14,8.6105]
[1753955182004,2.98380799,182.17,182.16,3.12]
[1753955182307,10.08453967,182.17,182.16,3.12]
[1753955183510,15.57413967,182.17,182.16,3.12]
[1753955184708,10.08453967,182.17,182.16,3.12]
[1753955187109,12.40413967,182.17,182.14,5.4903]
[1753955187411,3.17,182.15,182.14,8.6103]
[1753955188309,3.17,182.16,182.14,8.6103]
[1753955188511,3.17,182.16,182.15,8.6102]
[1753955188704,7.10073696,182.16,182.15,8.6102]
[1753955189509,7.10073696,182.16,182.15,3.12]
[1753955190612,12.59063696,182.16,182.15,3.12]
[1753955191209,3.17,182.15,182.14,3.12]
[1753955191404,7.10092256,182.15,182.14,3.12]
[1753955192409,12.59112256,182.15,182.12,5.491]
[1753955192614,3.17,182.13,182.12,5.491]
[1753955193313,3.17,182.13,182.12,8.611]
[1753955195014,3.17,182.14,182.12,5.491]
[1753955195214,3.17,182.14,182.13,8.6108]
[1753955202718,7.10886784,182.14,182.13,8.6108]
[1753955204618,3.93886784,182.14,182.13,8.6108]
[1753955204918,5.0808394,182.14,182.13,8.6108]
[1753955205117,9.01970724,182.14,182.13,8.6108]
[1753955205318,7.10886784,182.14,182.13,3.12]
[1753955205616,9.01970724,182.14,182.13,3.12]
[1753955206320,9.01970724,182.14,182.13,8.6108]
[1753955206721,3.93886784,182.14,182.13,8.6108]
[1753955207014,1.9108394,182.14,182.13,5.4908]
[1753955207218,2.94,182.13,182.05,0.95561078]
[1753955207516,3.94436178,182.12,182.1,3.12]
[1753955207722,7.56026833,182.19,182.12,3.12]
[1753955207915,2.94,182.21,182.16,3.12]
[1753955208214,2.94,182.19,182.16,8.6097]
[1753955208419,3.94287288,182.18,182.17,3.12]
[1753955208813,6.88287288,182.18,182.17,3.12]
[1753955209320,5.4888,182.2,182.17,3.12]
[1753955209510,6.88118377,182.19,182.17,3.12]
[1753955209715,2.94,182.19,182.17,3.12]
[1753955211317,2.94,182.25,182.18,3.12]
[1753955211525,2.9838881,182.27,182.21,3.12]
[1753955211526,3.93861333,182.24,182.21,3.12]
[1753955211725,12.36641333,182.23,182.22,3.12]
[1753955212021,6.87861333,182.23,182.22,3.12]
[1753955214519,8.4277,182.24,182.22,3.12]
[1753955215424,2.94,182.24,182.22,3.12]
[1753955216926,2.94,182.24,182.22,8.6081]
[1753955217226,2.94,182.24,182.23,3.12]
[1753955217626,8.4275,182.24,182.23,3.12]
[1753955219622,2.9838881,182.27,182.23,3.12]
[1753955219825,2.9838881,182.29,182.23,3.12]
[1753955220025,8.4267,182.27,182.25,3.12]
[1753955220929,2.94,182.26,182.25,3.12]
[1753955221227,8.4269,182.26,182.25,3.12]
[1753955221631,2.94,182.26,182.25,3.12]
[1753955226430,2.94,182.26,182.24,5.4875]
[1753955226431,5.4869,182.27,182.26,3.12]
[1753955226627,8.4269,182.27,182.26,3.12]
[1753955232930,2.94,182.27,182.21,3.12]
[1753955233229,2.94,182.25,182.23,3.12]
[1753955233632,8.4273,182.25,182.24,3.12]
[1753955235328,8.4675,182.24,182.23,3.16]
[1753955235632,2.98,182.23,182.17,3.16]
[1753955235831,5.4882,182.22,182.2,5.4887]
[1753955236030,2.98,182.22,182.21,3.16]
[1753955236231,2.98,182.23,182.21,3.16]
[1753955236430,8.4679,182.23,182.21,3.16]
[1753955237930,8.4679,182.23,182.22,3.16]
[1753955239534,2.98,182.23,182.22,3.16]
[1753955241628,8.4678,182.23,182.22,3.16]
[1753955246133,5.4886,182.21,182.2,3.16]
[1753955246333,8.4686,182.21,182.2,3.16]
[1753955246637,8.4686,182.21,182.17,3.16]
[1753955246638,5.4893,182.18,182.17,3.16]
[1753955247038,8.4693,182.18,182.17,3.16]
[1753955250534,8.47,182.16,182.12,3.16]
[1753955251240,2.98,182.16,182.14,3.16]
[1753955252741,5.9638881,182.17,182.15,5.4902]
[1753955252941,5.9638881,182.17,182.16,3.16]
[1753955253145,11.4528881,182.19,182.16,3.16]
[1753955253344,3.92504913,182.18,182.16,8.6499]
[1753955253640,5.9638881,182.19,182.1,3.16]
[1753955253843,5.4896,182.17,182.15,3.16]
[1753955254643,8.4696,182.17,182.15,3.16]
[1753955255538,2.9838881,182.19,182.15,3.16]
[1753955255539,5.4899,182.16,182.15,3.16]
[1753955255746,8.4699,182.16,182.15,3.16]
[1753955256240,2.98,182.16,182.15,3.16]
[1753955256943,4.89047608,182.16,182.15,3.16]
[1753955257746,1.91047608,182.16,182.15,3.16]
[1753955258045,1.91047608,182.16,182.15,8.6502]
[1753955260047,1.91047608,182.18,182.17,3.16]
[1753955260651,4.89047608,182.18,182.17,3.16]
[1753955262354,10.37977608,182.18,182.17,3.16]
[1753955262554,4.89047608,182.18,182.17,3.16]
[1753955265055,1.91047608,182.18,182.16,3.05]
[1753955265257,4.92047608,182.18,182.16,3.05]
[1753955265966,3.01,182.17,182.16,3.05]
[1753955267969,10.40987608,182.18,182.16,3.05]
[1753955268876,3.01,182.17,182.16,3.05]
[1753955269177,4.62026833,182.24,182.16,3.05]
[1753955269364,1.91047608,182.22,182.19,1.91047608]
[1753955269678,1.91047608,182.22,182.2,3.05]
[1753955270168,3.01,182.21,182.12,3.05]
[1753955270370,3.01,182.21,182.15,3.05]
[1753955270676,7.39857608,182.22,182.19,3.05]
[1753955270876,5.4881,182.22,182.19,3.05]
[1753955271078,4.92047608,182.23,182.19,3.05]
[1753955271270,4.92047608,182.23,182.2,3.05]
[1753955272268,5.4881,182.22,182.2,3.05]
[1753955273378,8.4981,182.22,182.2,3.05]
[1753955273878,5.4881,182.22,182.2,3.05]
[1753955274078,8.4979,182.23,182.21,3.05]
[1753955274276,3.01,182.23,182.21,3.05]
[1753955274979,5.4881,182.22,182.21,3.05]
[1753955275167,3.01,182.23,182.21,3.05]
[1753955275879,2.98278042,182.25,182.21,3.05]
[1753955276070,3.01,182.25,182.21,3.05]
[1753955276274,3.01,182.24,182.21,3.05]
[1753955276578,8.4975,182.24,182.21,8.5382]
[1753955276972,8.4975,182.24,182.22,3.05]
[1753955278075,3.01,182.23,182.22,3.05]
[1753955278576,3.01,182.25,182.23,3.05]
[1753955278978,5.487,182.26,182.2,3.05]
[1753955279182,8.497,182.26,182.2,3.05]
[1753955279683,3.01,182.25,182.23,5.4876]
[1753955279980,3.01,182.25,182.24,3.05]
[1753955282172,2.98278042,182.28,182.24,3.05]
[1753955282379,3.91897009,182.27,182.24,3.05]
[1753955282679,3.01,182.28,182.24,3.05]
[1753955282882,5.99278042,182.3,182.22,3.05]
[1753955283084,6.92850332,182.29,182.22,3.05]
[1753955283382,5.4864,182.28,182.26,5.4868]
[1753955283576,8.4964,182.28,182.27,3.05]
[1753955284080,3.01,182.28,182.27,3.05]
[1753955284781,5.4861,182.29,182.27,3.05]
[1753955285081,5.4861,182.29,182.28,3.05]
[1753955285082,3.01,182.29,182.28,3.05]
[1753955285284,8.496,182.29,182.28,3.05]
[1753955286081,3.01,182.31,182.28,3.05]
[1753955286776,8.4955,182.31,182.28,5.4861]
[1753955286975,8.4955,182.31,182.29,3.05]
[1753955288185,3.01,182.31,182.3,3.05]
[1753955289585,5.4849,182.33,182.3,3.05]
[1753955289884,5.99278042,182.34,182.31,3.05]
[1753955290277,5.99278042,182.34,182.31,8.5352]
[1753955290482,100.8,182.35,182.32,3.05]
[1753955290678,3.01,182.34,182.32,3.05]
[1753955290882,5.99278042,182.36,182.33,5.4846]
[1753955291086,5.99278042,182.36,182.34,3.05]
[1753955291289,5.99278042,182.36,182.3,3.05]
[1753955291588,8.4942,182.35,182.33,3.05]
[1753955291786,3.01,182.35,182.33,3.05]
[1753955292287,3.01,182.35,182.34,3.05]
[1753955293088,8.46648042,182.37,182.34,5.4845]
[1753955293380,3.01,182.37,182.35,3.05]
[1753955294188,3.01,182.37,182.36,3.05]
[1753955294391,2.98278042,182.39,182.36,3.05]
[1753955294581,3.01,182.38,182.36,3.05]
[1753955294781,8.4933,182.38,182.36,3.05]
[1753955294983,2.98278042,182.39,182.31,2.98278042]
[1753955295182,3.13,182.38,182.32,3.2]
[1753955295382,8.6136,182.37,182.35,3.2]
[1753955295585,3.13,182.36,182.34,5.4843]
[1753955296191,3.13,182.36,182.35,3.2]
[1753955297887,8.6139,182.36,182.35,3.2]
[1753955298390,3.13,182.36,182.33,8.6847]
[1753955298586,3.13,182.36,182.34,3.2]
[1753955299188,3.13,182.36,182.33,5.4847]
[1753955299385,3.13,182.36,182.35,3.2]
[1753955300790,3.13,182.36,182.35,8.6842]
[1753955301094,6.11278042,182.39,182.35,3.2]
[1753955301298,3.13,182.39,182.35,3.2]
[1753955301487,8.46598042,182.39,182.35,3.2]
[1753955301692,3.13,182.38,182.32,3.2]
[1753955302297,3.13,182.38,182.36,3.2]
[1753955303198,3.13,182.38,182.36,8.6839]
[1753955303395,3.13,182.38,182.37,3.2]
[1753955303797,8.6133,182.38,182.37,3.2]
[1753955304098,3.13,182.38,182.37,3.2]
[1753955305894,8.6133,182.38,182.37,3.2]
[1753955306098,3.13,182.38,182.31,2.98278042]
[1753955306394,3.13,182.36,182.32,3.2]
[1753955306595,3.13,182.35,182.32,3.2]
[1753955306786,3.13,182.35,182.32,5.10615825]
[1753955306991,3.13,182.35,182.32,1.90615825]
[1753955307191,3.13,182.35,182.33,3.2]
[1753955307596,7.38975825,182.37,182.34,5.4843]
[1753955307798,3.13,182.36,182.35,3.2]
[1753955309799,8.6139,182.36,182.35,3.2]
[1753955309999,3.13,182.36,182.35,3.2]
[1753955310803,8.6139,182.36,182.35,3.2]
[1753955311900,10.52005825,182.36,182.35,3.2]
[1753955312101,5.03615825,182.36,182.35,3.2]
[1753955312406,1.90615825,182.36,182.35,3.2]
[1753955312798,7.39005825,182.36,182.35,3.2]
[1753955313502,1.90615825,182.36,182.35,3.2]
[1753955314803,10.51995825,182.37,182.35,3.2]
[1753955315304,7.38995825,182.37,182.35,3.2]
[1753955315501,1.90615825,182.37,182.35,8.6841]
[1753955315806,1.90615825,182.37,182.36,3.2]
[1753955316602,1.90615825,182.37,182.36,8.6839]
[1753955319709,5.03615825,182.38,182.33,1.90615825]
[1753955320006,5.03615825,182.38,182.37,3.2]
[1753955320401,10.51945825,182.38,182.37,3.2]
[1753955321909,5.03615825,182.38,182.37,8.6836]
[1753955323008,5.03615825,182.38,182.37,3.2]
[1753955323405,10.51945825,182.38,182.37,3.2]
[1753955325812,5.03615825,182.38,182.37,3.2]
[1753955327116,8.97770865,182.38,182.37,3.2]
[1753955328316,14.46100865,182.38,182.37,3.2]
[1753955330017,5.84770865,182.38,182.37,3.2]
[1753955331319,3.9415504,182.38,182.37,8.6836]
[1753955332018,7.38895825,182.4,182.38,5.4832]
[1753955332215,7.38895825,182.4,182.39,3.08]
[1753955332418,9.43007095,182.4,182.39,3.08]
[1753955332818,12.38007095,182.4,182.39,3.08]
[1753955337714,2.95,182.39,182.37,3.08]
[1753955337919,2.95,182.37,182.33,3.08]
[1753955338120,8.80660507,182.36,182.33,3.08]
[1753955338310,4.85615825,182.36,182.33,3.08]
[1753955338513,4.85615825,182.36,182.35,3.08]
[1753955338708,8.80678771,182.36,182.35,3.08]
[1753955340819,14.29068771,182.36,182.35,3.08]
[1753955341021,12.38452946,182.36,182.35,3.08]
[1753955341316,3.95062946,182.36,182.35,3.08]
[1753955341515,6.90062946,182.36,182.35,3.08]
[1753955342919,2.95,182.35,182.32,3.08]
[1753955343125,2.95,182.33,182.32,3.08]
[1753955343420,1.90615825,182.35,182.32,3.08]
[1753955343624,2.95,182.33,182.32,3.08]
[1753955344323,2.95,182.33,182.32,8.5651]
[1753955344623,4.85615825,182.35,182.33,5.4846]
[1753955344820,4.85615825,182.35,182.34,3.08]
[1753955345022,8.81126752,182.35,182.34,3.08]
[1753955345323,5.86126752,182.35,182.34,3.08]
[1753955345726,5.86126752,182.35,182.34,8.5645]
[1753955346225,3.95510927,182.35,182.34,8.5645]
[1753955348826,3.95510927,182.35,182.34,3.08]
[1753955349729,3.95510927,182.35,182.34,8.5645]
[1753955350528,3.95510927,182.35,182.34,3.08]
[1753955350718,6.90510927,182.35,182.34,3.08]
[1753955359231,8.81126752,182.35,182.34,3.08]
[1753955359734,14.29546752,182.35,182.34,3.08]
[1753955364228,12.38930927,182.35,182.34,3.08]
[1753955364428,14.29546752,182.35,182.34,3.08]
[1753955364630,12.38930927,182.35,182.34,3.08]
[1753955364829,14.29546752,182.35,182.34,3.08]
[1753955366639,8.81126752,182.35,182.34,3.08]
[1753955369432,5.86126752,182.35,182.34,3.08]
[1753955370243,14.48546752,182.35,182.34,3.08]
[1753955372542,3.14,182.33,182.29,3.06]
[1753955372744,1.90615825,182.3,182.29,3.06]
[1753955372940,5.04615825,182.3,182.29,3.06]
[1753955373445,10.53185825,182.3,182.29,3.06]
[1753955375146,8.6263,182.28,182.24,1.90615825]
[1753955375445,1.90615825,182.27,182.24,1.90615825]
[1753955375646,1.90615825,182.27,182.25,3.06]
[1753955376747,10.53215825,182.29,182.27,3.06]
[1753955377539,1.90615825,182.29,182.28,3.06]
[1753955379554,1.90615825,182.29,182.25,1.90615825]
[1753955379748,5.04615825,182.29,182.26,3.06]
[1753955380251,10.53235825,182.29,182.26,8.5467]
[1753955380452,5.04615825,182.31,182.27,1.90615825]
[1753955380653,3.95006115,182.3,182.28,3.06]
[1753955380850,5.04615825,182.31,182.28,3.06]
[1753955381053,3.95005952,182.3,182.28,3.06]
[1753955381255,5.4857,182.3,182.28,3.06]
[1753955381752,8.6257,182.3,182.28,3.06]
[1753955382849,8.6257,182.3,182.28,5.4863]
[1753955383054,3.14,182.3,182.29,3.06]
[1753955384044,8.6257,182.3,182.29,3.06]
[1753955384650,3.14,182.3,182.29,3.06]
[1753955387045,7.39175825,182.31,182.29,5.4859]
[1753955387251,1.90615825,182.31,182.3,3.01]
[1753955387453,9.06646014,182.31,182.3,3.01]
[1753955387654,5.85646014,182.31,182.3,3.01]
[1753955388151,3.95030189,182.31,182.3,3.01]
[1753955388344,10.60115825,182.33,182.3,5.4857]
[1753955388550,7.15989295,182.32,182.31,3.01]
[1753955389550,12.64499295,182.32,182.31,3.01]
[1753955394356,7.15989295,182.32,182.31,3.01]
[1753955394562,3.21,182.32,182.31,3.01]
[1753955394860,1.90615825,182.35,182.29,1.90615825]
[1753955395161,3.94947799,182.34,182.32,3.01]
[1753955395365,10.60055825,182.35,182.33,3.01]
[1753955395558,3.21,182.34,182.33,3.01]
[1753955396162,8.6945,182.34,182.33,3.01]
[1753955400761,3.21,182.34,182.33,3.01]
[1753955402659,10.60045825,182.35,182.33,3.01]
[1753955402864,3.21,182.34,182.33,3.01]
[1753955403760,8.6945,182.34,182.33,3.01]
[1753955405466,8.6948,182.33,182.32,3.01]
[1753955407267,3.21,182.33,182.32,3.01]
[1753955409668,9.06890343,182.33,182.3,3.01]
[1753955409871,1.90615825,182.31,182.3,3.01]
[1753955410067,5.11615825,182.31,182.3,3.01]
[1753955410763,5.11615825,182.31,182.24,99.86]
[1753955410764,5.85960026,182.31,182.24,1.90615825]
[1753955411069,3.21,182.27,182.25,3.01]
[1753955412269,3.21,182.27,182.26,3.01]
[1753955412670,5.11615825,182.27,182.26,3.01]
[1753955414066,1.90615825,182.29,182.26,4.91615825]
[1753955414265,1.90615825,182.3,182.28,3.01]
[1753955414974,5.11615825,182.3,182.28,3.01]
[1753955415365,1.90615825,182.31,182.29,5.486]
[1753955415568,1.90615825,182.31,182.3,3.08]
[1753955415569,4.92615825,182.31,182.3,3.08]
[1753955415770,8.87951191,182.31,182.3,3.08]
[1753955416175,3.95335366,182.31,182.3,8.5657]
[1753955416374,4.92615825,182.34,182.3,3.08]
[1753955416576,1.90615825,182.32,182.3,3.08]
[1753955416777,3.02,182.3,182.29,3.08]
[1753955416971,7.39125825,182.32,182.29,3.08]
[1753955417177,3.02,182.31,182.29,3.08]
[1753955418281,3.02,182.31,182.3,5.4856]
[1753955418472,3.02,182.31,182.3,8.5656]
[1753955418669,4.58931311,182.36,182.3,1.90615825]
[1753955418975,3.02,182.37,182.34,3.08]
[1753955419177,3.95285997,182.36,182.34,3.08]
[1753955419478,3.02,182.37,182.34,3.08]
[1753955419679,6.97212977,182.36,182.35,1.90615825]
[1753955419980,6.97212977,182.36,182.35,4.98615825]
[1753955420883,6.97212977,182.36,182.35,3.08]
[1753955421885,6.97212977,182.36,182.35,8.5642]
[1753955422087,3.95212977,182.36,182.27,10.9728]
[1753955422289,3.02,182.35,182.33,3.08]
[1753955422487,3.02,182.35,182.33,8.5646]
[1753955422687,3.02,182.35,182.34,3.08]
[1753955423187,3.02,182.35,182.34,8.5645]
[1753955423384,3.02,182.36,182.35,3.08]
[1753955423585,6.97073899,182.36,182.35,3.08]
[1753955426092,3.95073899,182.36,182.35,3.08]
[1753955426291,5.4838,182.37,182.35,3.08]
[1753955426588,8.5038,182.37,182.35,3.08]
[1753955427191,3.02,182.36,182.35,3.08]
[1753955427887,6.97005401,182.36,182.35,3.08]
[1753955428090,12.45395401,182.36,182.35,3.08]
[1753955428391,3.02,182.36,182.35,3.08]
[1753955429091,6.97005852,182.36,182.35,3.08]
[1753955429294,3.02,182.36,182.35,3.08]
[1753955429686,3.02,182.36,182.35,8.5642]
[1753955429886,3.02,182.37,182.35,8.5642]
[1753955430192,3.02,182.37,182.36,3.08]
[1753955431090,5.4831,182.39,182.36,5.4838]
[1753955431292,3.94890357,182.38,182.37,3.08]
[1753955431884,6.96890357,182.38,182.37,3.08]
[1753955434195,3.02,182.38,182.37,3.08]
[1753955435497,3.02,182.41,182.37,3.08]
[1753955435691,3.4528081,182.42,182.37,3.08]
[1753955435894,3.02,182.38,182.37,3.08]
[1753955436097,3.02,182.38,182.37,8.5634]
[1753955440207,3.02,182.41,182.35,3.08]
[1753955440405,3.4528081,182.42,182.35,3.08]
[1753955440406,3.02,182.39,182.35,3.08]
[1753955440707,3.02,182.38,182.35,3.08]
[1753955440904,3.02,182.38,182.37,3.08]
[1753955442500,3.4528081,182.42,182.37,3.08]
[1753955442698,3.4528081,182.42,182.41,3.08]
[1753955442898,3.4528081,182.42,182.41,4.98441174]
[1753955444508,3.4528081,182.42,182.41,10.46681174]
[1753955444906,3.4528081,182.42,182.41,8.5624]
[1753955447509,3.4528081,182.42,182.41,11.53803081]
[1753955458924,4.62637064,182.53,182.42,3.2]
[1753955458925,3.01,182.51,182.42,3.2]
[1753955459114,3.92820728,182.5,182.43,2.97563081]
[1753955459318,3.01,182.48,182.43,2.97563081]
[1753955459518,3.01,182.48,182.43,6.17563081]
[1753955459713,3.01,182.48,182.43,2.97563081]
[1753955459918,3.01,182.48,182.44,3.2]
[1753955460114,3.01,182.48,182.43,6.17563081]
[1753955460320,3.01,182.46,182.45,5.4811]
[1753955462221,3.01,182.46,182.44,5.4814]
[1753955464820,4.91430279,182.46,182.44,5.4814]
[1753955465023,5.4808,182.47,182.45,5.4812]
[1753955465225,7.38510279,182.47,182.45,5.4812]
[1753955465526,3.01,182.46,182.45,5.4812]
[1753955466028,3.01,182.46,182.44,5.4814]
[1753955467328,3.01,182.46,182.43,3.2]
[1753955467630,3.01,182.46,182.44,3.2]
[1753955467925,4.91430279,182.46,182.45,5.4812]
[1753955468126,8.83024249,182.46,182.45,5.4812]
[1753955468531,3.01,182.46,182.45,8.6812]
[1753955469526,3.01,182.46,182.45,5.4812]
[1753955469925,3.01,182.46,182.45,8.6812]
[1753955474522,3.01,182.46,182.45,3.2]
[1753955475430,3.01,182.46,182.44,8.4414]
[1753955477628,3.12,182.45,182.44,8.4414]
[1753955477828,3.12,182.45,182.43,5.4818]
[1753955478129,3.12,182.43,182.4,4.86430279]
[1753955478335,1.90430279,182.43,182.41,5.4823]
[1753955478533,3.12,182.42,182.41,8.4423]
[1753955480228,7.04491193,182.42,182.41,8.4423]
[1753955481336,3.12,182.42,182.41,8.4423]
[1753955483233,8.95093902,182.42,182.39,4.86430279]
[1753955483439,3.12,182.41,182.39,4.86430279]
[1753955483640,3.12,182.41,182.4,2.96]
[1753955484236,3.12,182.41,182.4,8.4427]
[1753955484539,3.12,182.41,182.4,10.34700279]
[1753955486144,7.04922016,182.41,182.4,10.34700279]
[1753955486848,3.12,182.4,182.39,5.483]
[1753955487038,3.12,182.39,182.38,2.96]
[1753955488245,3.12,182.39,182.38,8.4431]
[1753955490747,3.12,182.39,182.38,10.34740279]
[1753955495151,3.12,182.39,182.38,4.86430279]
[1753955495352,3.12,182.39,182.38,2.96]
[1753955495952,3.12,182.39,182.38,4.86430279]
[1753955496149,3.12,182.39,182.38,10.34760279]
[1753955496748,1.90430279,182.42,182.38,10.34760279]
[1753955497054,3.12,182.4,182.39,8.4428]
[1753955497850,3.12,182.41,182.4,2.96]
[1753955498050,7.04710027,182.41,182.4,2.96]
[1753955502253,7.04710027,182.41,182.4,8.4427]
[1753955502451,3.12,182.41,182.4,8.4427]
[1753955502648,1.90430279,182.44,182.4,2.96]
[1753955502847,1.90430279,182.44,182.33,125.20152663]
[1753955502848,7.04679095,182.43,182.42,8.4418]
[1753955503354,7.04679095,182.43,182.42,2.96]
[1753955504356,7.04679095,182.43,182.41,7.38660279]
[1753955504557,3.12,182.43,182.41,10.34660279]
[1753955505355,3.12,182.43,182.41,10.53660279]
[1753955507258,3.12,182.43,182.42,3.15]
[1753955507457,7.047793,182.43,182.42,3.15]
[1753955507653,9.409593,182.43,182.42,3.15]
[1753955507858,12.589593,182.43,182.42,3.15]
[1753955511861,7.107793,182.43,182.42,3.15]
[1753955512061,7.107793,182.43,182.42,8.6321]
[1753955512257,3.18,182.44,182.43,3.15]
[1753955512452,3.92802888,182.44,182.43,5.05430279]
[1753955513062,3.92802888,182.44,182.43,10.53610279]
[1753955514664,3.18,182.45,182.44,5.4815]
[1753955514965,3.18,182.45,182.44,8.6315]
[1753955515264,7.10795813,182.45,182.44,8.6315]
[1753955518861,3.92795813,182.45,182.44,8.6315]
[1753955519066,7.10795813,182.45,182.44,8.6315]
[1753955521168,3.92795813,182.45,182.44,8.6315]
[1753955521470,7.10795813,182.45,182.44,8.6315]
[1753955525572,3.92795813,182.45,182.44,8.6315]
[1753955525770,3.92795813,182.45,182.44,10.53580279]
[1753955525970,7.10795813,182.45,182.44,10.53580279]
[1753955528977,7.10795813,182.45,182.44,8.6315]
[1753955529370,7.10795813,182.45,182.44,10.53580279]
[1753955530676,3.18,182.45,182.44,10.53580279]
[1753955530876,7.1074005,182.45,182.44,10.53580279]
[1753955532272,3.18,182.45,182.44,10.53580279]
[1753955535985,4.61177877,182.51,182.44,1.90430279]
[1753955536277,3.16,182.49,182.48,3.11]
[1753955536471,3.92180302,182.49,182.47,5.01430279]
[1753955536677,7.08180302,182.48,182.47,10.49490279]
[1753955537181,1.90430279,182.52,182.5,5.4795]
[1753955537382,7.0785169,182.51,182.5,5.4795]
[1753955539886,7.0785169,182.51,182.49,5.4799]
[1753955540085,7.0785169,182.5,182.49,5.4799]
[1753955545093,3.9185169,182.5,182.48,8.5902]
[1753955545294,7.0785169,182.49,182.48,8.5902]
[1753955545693,3.16,182.51,182.49,3.11]
[1753955545990,3.16,182.49,182.43,1.90430279]
[1753955546193,3.16,182.47,182.46,5.4809]
[1753955546385,3.16,182.47,182.46,8.5909]
[1753955554701,7.07291565,182.47,182.46,8.5909]
[1753955555104,7.07291565,182.47,182.46,5.4809]